bitfinex/quotes_BTCUSD_20240827
["timestamp","ask_amount","ask_price","bid_price","bid_amount"]
[1724777934481,0.13801067,61719.0,61711.0,0.023]
[1724777934706,0.12046425,61719.0,61710.0,0.023]
[1724777934954,0.01,61713.0,61710.0,0.024]
[1724777935166,0.15996545,61712.0,61710.0,0.024]
[1724777935387,0.15996545,61712.0,61703.0,0.100862]
[1724777935388,0.15996545,61712.0,61704.0,0.023862]
[1724777935601,0.0929,61711.0,61704.0,0.000862]
[1724777935821,0.15996545,61710.0,61704.0,0.02418289]
[1724777936040,0.15996545,61710.0,61707.0,0.000822]
[1724777936739,0.15996545,61710.0,61707.0,0.04855157]
[1724777936950,0.18536348,61710.0,61708.0,0.07072957]
[1724777937173,0.18536348,61710.0,61708.0,0.32367985]
[1724777937412,0.18536348,61710.0,61709.0,0.1]
[1724777937625,0.18536348,61710.0,61709.0,0.123]
[1724777937835,0.02292359,61710.0,61709.0,0.123]
[1724777938041,0.03192359,61710.0,61709.0,0.123]
[1724777938253,2e-08,61711.0,61709.0,0.123]
[1724777938470,2e-08,61711.0,61710.0,0.023]
[1724777940463,2e-08,61711.0,61710.0,0.024]
[1724777940907,1e-08,61714.0,61710.0,0.02238879]
[1724777941148,1e-08,61714.0,61711.0,0.0925]
[1724777941392,1e-08,61714.0,61711.0,0.1925]
[1724777942265,0.02539657,61714.0,61711.0,0.1925]
[1724777942484,0.12184832,61714.0,61711.0,0.1925]
[1724777942705,0.12184832,61714.0,61711.0,0.1]
[1724777942935,0.09645175,61714.0,61710.0,0.14572893]
[1724777943147,0.12184868,61714.0,61710.0,0.04572893]
[1724777943366,3e-08,61714.0,61710.0,0.04472893]
[1724777943605,0.12055462,61717.0,61710.0,0.04472893]
[1724777943606,0.12055462,61717.0,61711.0,0.001]
[1724777943853,0.28052007,61716.0,61711.0,0.001]
[1724777944073,0.0684,61715.0,61710.0,0.04472893]
[1724777944299,0.18895462,61715.0,61710.0,0.04472893]
[1724777944517,0.0684,61715.0,61710.0,0.04572893]
[1724777944949,0.0684,61715.0,61710.0,0.04472893]
[1724777945406,0.18895462,61715.0,61710.0,0.04472893]
[1724777945851,0.04832484,61714.0,61710.0,0.04572893]
[1724777946038,0.1205753,61714.0,61710.0,0.04572893]
[1724777946456,0.14597242,61714.0,61710.0,0.04572893]
[1724777946689,0.18897902,61715.0,61710.0,0.04572893]
[1724777946912,0.22887347,61715.0,61710.0,0.04572893]
[1724777947391,0.10829445,61715.0,61710.0,0.04572893]
[1724777947625,0.10829445,61715.0,61710.0,0.04472893]
[1724777947852,0.22887347,61715.0,61710.0,0.04572893]
[1724777948058,0.18897902,61715.0,61710.0,0.04572893]
[1724777948274,0.18897902,61715.0,61710.0,0.04472893]
[1724777948727,0.18897902,61715.0,61710.0,0.04572893]
[1724777949174,0.00090421,61714.0,61710.0,0.04572893]
[1724777949610,0.12148323,61714.0,61710.0,0.04572893]
[1724777949842,0.1641581,61714.0,61710.0,0.04572893]
[1724777950072,0.18955545,61714.0,61710.0,0.04572893]
[1724777950578,0.12055438,61712.0,61710.0,0.04472893]
[1724777951008,0.20996545,61713.0,61710.0,0.04572893]
[1724777951232,0.03988445,61713.0,61710.0,0.04572893]
[1724777951483,0.00090421,61714.0,61710.0,0.04472893]
[1724777951719,0.00090421,61714.0,61710.0,0.04572893]
[1724777951926,0.0684,61715.0,61710.0,0.04572893]
[1724777951927,0.04999838,61715.0,61710.0,0.02238879]
[1724777952132,0.04999838,61715.0,61710.0,0.001]
[1724777952340,0.04999838,61715.0,61707.0,0.000822]
[1724777952554,2e-08,61709.0,61707.0,0.000822]
[1724777955174,2e-08,61709.0,61707.0,0.001822]
[1724777956297,0.005,61714.0,61707.0,0.001822]
[1724777956507,0.14166315,61708.0,61707.0,0.001822]
[1724777956724,0.14166315,61708.0,61707.0,0.0261115]
[1724777956725,0.22766315,61708.0,61707.0,0.0261115]
[1724777956962,0.22766315,61708.0,61707.0,0.001822]
[1724777957170,0.22766315,61708.0,61707.0,0.000822]
[1724777957584,0.22766315,61708.0,61707.0,0.001822]
[1724777958094,0.25042947,61708.0,61707.0,0.000822]
[1724777958300,0.25042947,61708.0,61707.0,0.001822]
[1724777958710,0.37087335,61708.0,61707.0,0.001822]
[1724777959128,0.34810703,61708.0,61707.0,0.001822]
[1724777959554,0.25306505,61708.0,61707.0,0.001822]
[1724777959990,0.37350893,61708.0,61707.0,0.001822]
[1724777960865,0.34810703,61708.0,61707.0,0.001822]
[1724777961276,0.22766315,61708.0,61707.0,0.001822]
[1724777962146,0.22766315,61708.0,61707.0,0.001862]
[1724777962938,0.25042947,61708.0,61707.0,0.001862]
[1724777963903,0.22766315,61708.0,61707.0,0.001862]
[1724777966122,0.13666315,61708.0,61707.0,0.10306749]
[1724777966339,0.13666315,61708.0,61707.0,0.22606749]
[1724777967442,0.0857,61711.0,61707.0,0.22606749]
[1724777967645,0.0857,61711.0,61708.0,0.123]
[1724777967857,0.10671868,61711.0,61708.0,0.123]
[1724777968063,0.0475,61710.0,61708.0,0.123]
[1724777968731,0.0475,61710.0,61709.0,0.10120549]
[1724777968942,0.0475,61710.0,61709.0,0.22420549]
[1724777970493,0.0605,61710.0,61709.0,0.22420549]
[1724777970727,0.0475,61710.0,61709.0,0.22420549]
[1724777971174,0.0605,61710.0,61709.0,0.22520549]
[1724777971612,0.0605,61710.0,61709.0,4e-05]
[1724777971613,0.07521042,61710.0,61709.0,4e-05]
[1724777972462,0.07611463,61710.0,61709.0,4e-05]
[1724777973830,0.10151679,61710.0,61709.0,4e-05]
[1724777975119,0.05401679,61710.0,61709.0,4e-05]
[1724777975323,0.02861463,61710.0,61709.0,4e-05]
[1724777978578,0.05401694,61710.0,61709.0,4e-05]
[1724777978782,0.0475,61702.0,61691.0,0.0991]
[1724777978987,0.0987,61701.0,61692.0,0.12514655]
[1724777979190,0.0987,61701.0,61698.0,0.10120549]
[1724777979950,0.12410589,61701.0,61698.0,0.10120549]
[1724777980755,0.13810589,61701.0,61698.0,0.20830549]
[1724777981392,0.014,61701.0,61698.0,0.20834549]
[1724777981597,0.03940584,61701.0,61698.0,0.20834549]
[1724777982609,0.014,61701.0,61698.0,0.20834549]
[1724777984330,0.014,61701.0,61698.0,0.20916749]
[1724777984540,0.014,61701.0,61699.0,0.13]
[1724777984759,0.014,61701.0,61700.0,0.207]
[1724777984981,0.014,61701.0,61700.0,0.23]
[1724777986006,0.02540534,61704.0,61700.0,0.23]
[1724777986199,0.02540534,61704.0,61703.0,0.10120549]
[1724777986568,0.02540534,61704.0,61703.0,0.11020549]
[1724777987179,0.03940534,61704.0,61703.0,0.11020549]
[1724777987800,0.02540534,61704.0,61703.0,0.21240549]
[1724777987985,0.02540534,61704.0,61703.0,0.31240549]
[1724777988193,0.03940534,61704.0,61703.0,0.31240549]
[1724777989545,0.014,61704.0,61703.0,0.31240549]
[1724777991333,0.014,61704.0,61703.0,0.21020549]
[1724777991561,0.014,61704.0,61703.0,0.18720549]
[1724777991761,0.03940365,61704.0,61703.0,0.08720549]
[1724777991998,0.04809402,61704.0,61703.0,0.08720549]
[1724777992992,0.14929402,61704.0,61703.0,0.08720549]
[1724777993637,0.13529402,61704.0,61703.0,0.08720549]
[1724777993810,0.13529402,61704.0,61703.0,0.08820549]
[1724777994069,0.13529402,61704.0,61703.0,0.06891053]
[1724777994206,0.13529402,61704.0,61703.0,0.10220549]
[1724777994426,0.10989037,61704.0,61703.0,0.1]
[1724777994634,0.10989037,61704.0,61699.0,0.10120549]
[1724777994827,0.01573904,61703.0,61699.0,0.10120549]
[1724777995833,0.01573904,61703.0,61700.0,0.000822]
[1724777996885,0.0475,61702.0,61700.0,0.100822]
[1724777997027,0.0475,61702.0,61700.0,0.000822]
[1724777997226,0.02370336,61701.0,61700.0,0.100822]
[1724777997701,0.04910927,61701.0,61700.0,0.101822]
[1724777998157,0.02370336,61701.0,61700.0,0.101822]
[1724777998846,0.02370336,61701.0,61700.0,0.100822]
[1724777999052,0.03770336,61701.0,61700.0,0.101822]
[1724777999482,0.14110336,61701.0,61698.0,0.000862]
[1724777999692,0.02530466,61700.0,61699.0,0.10120549]
[1724777999911,0.02530466,61700.0,61699.0,0.20120549]
[1724778000371,0.02370336,61701.0,61699.0,0.1]
[1724778000582,0.02370336,61701.0,61700.0,0.20120549]
[1724778000802,0.06311141,61701.0,61700.0,0.20120549]
[1724778001030,0.06311141,61701.0,61700.0,0.22420549]
[1724778001249,0.14760336,61701.0,61700.0,0.09124196]
[1724778001494,0.25100336,61701.0,61700.0,0.09124196]
[1724778001949,0.12710336,61701.0,61698.0,0.10206749]
[1724778002171,0.02116924,61701.0,61699.0,0.023]
[1724778002379,0.14456508,61700.0,61699.0,0.024]
[1724778002591,0.12688734,61700.0,61699.0,0.024]
[1724778002806,0.15857007,61701.0,61700.0,0.1252]
[1724778002807,0.14457007,61701.0,61700.0,0.1252]
[1724778003023,0.00090421,61704.0,61700.0,0.2511]
[1724778003243,0.014,61701.0,61700.0,0.2511]
[1724778003448,0.014,61701.0,61700.0,0.3561]
[1724778003657,0.00090421,61704.0,61700.0,0.3561]
[1724778003658,0.09639609,61702.0,61700.0,0.3561]
[1724778003861,0.12139886,61704.0,61701.0,0.2265]
[1724778003862,0.09639953,61703.0,61701.0,0.2265]
[1724778004108,0.09639953,61703.0,61702.0,0.2297]
[1724778004335,0.09639953,61703.0,61702.0,0.2527]
[1724778004769,0.00090421,61704.0,61703.0,0.2248]
[1724778004965,0.00090421,61704.0,61703.0,0.2478]
[1724778006099,0.09640269,61705.0,61703.0,0.07080733]
[1724778006328,0.00090421,61710.0,61704.0,0.16893506]
[1724778006329,0.09640603,61706.0,61704.0,0.16893506]
[1724778006555,0.0963947,61707.0,61706.0,0.2283]
[1724778006823,0.12140196,61710.0,61706.0,0.45250549]
[1724778006824,0.0963947,61708.0,61706.0,0.45250549]
[1724778007049,0.0963947,61708.0,61707.0,0.45250549]
[1724778007523,0.07230225,61709.0,61707.0,0.45250549]
[1724778007766,0.07230225,61709.0,61708.0,0.2227]
[1724778007998,0.07230225,61709.0,61708.0,0.3457]
[1724778008251,0.07318999,61710.0,61709.0,0.005]
[1724778008500,0.00090421,61714.0,61709.0,0.005]
[1724778008501,0.00090421,61714.0,61711.0,0.119]
[1724778008740,0.00090421,61714.0,61711.0,0.2166]
[1724778008741,0.04817715,61712.0,61711.0,0.2166]
[1724778008965,0.04817715,61712.0,61711.0,0.3396]
[1724778009456,0.04817715,61713.0,61711.0,0.123]
[1724778009670,0.04817715,61713.0,61712.0,0.3396]
[1724778010132,0.0490565,61714.0,61713.0,0.2166]
[1724778010359,0.04905651,61714.0,61713.0,0.3396]
[1724778010613,0.00090421,61714.0,61713.0,0.3396]
[1724778011818,0.04905651,61714.0,61713.0,0.3396]
[1724778012295,0.00090421,61714.0,61713.0,0.3396]
[1724778012543,0.04901695,61714.0,61713.0,0.3396]
[1724778013248,0.05201695,61714.0,61713.0,0.3406]
[1724778013464,0.00390421,61714.0,61713.0,0.3406]
[1724778014829,0.04811274,61721.0,61715.0,0.005]
[1724778015072,0.02539743,61723.0,61718.0,0.2267]
[1724778015073,0.07351017,61723.0,61718.0,0.2267]
[1724778015293,0.00090421,61730.0,61720.0,0.2267]
[1724778015294,0.04811274,61724.0,61720.0,0.2267]
[1724778015547,0.09913376,61730.0,61724.0,0.1242]
[1724778015548,0.04811274,61726.0,61724.0,0.1242]
[1724778015768,0.04811274,61726.0,61725.0,0.2242]
[1724778015984,0.04811274,61726.0,61725.0,0.2472]
[1724778016215,0.04901695,61730.0,61725.0,0.26830733]
[1724778016430,0.00090421,61730.0,61729.0,0.47960702]
[1724778016645,0.00090421,61730.0,61729.0,0.60260702]
[1724778018939,0.00090421,61730.0,61729.0,0.60360702]
[1724778022022,0.00090421,61730.0,61729.0,0.50110702]
[1724778022262,0.00090421,61730.0,61729.0,0.02288553]
[1724778022263,0.01163463,61730.0,61729.0,0.02288553]
[1724778022484,0.01163463,61730.0,61729.0,0.001]
[1724778022703,0.16964737,61730.0,61729.0,0.001]
[1724778022921,0.12153463,61730.0,61729.0,0.001]
[1724778023142,0.15875233,61730.0,61729.0,0.001]
[1724778023603,0.15875233,61730.0,61723.0,0.25290702]
[1724778023825,0.15875233,61730.0,61724.0,0.023]
[1724778024255,0.15875233,61730.0,61724.0,0.123]
[1724778024481,0.04885233,61730.0,61724.0,0.123]
[1724778024728,0.18207216,61727.0,61724.0,0.123]
[1724778024963,0.07217216,61726.0,61724.0,0.023]
[1724778025177,0.07217216,61725.0,61718.0,0.023]
[1724778025388,0.04792364,61722.0,61718.0,0.023]
[1724778025608,0.04792364,61723.0,61718.0,0.023]
[1724778026261,0.04792674,61723.0,61718.0,0.023]
[1724778026464,0.04792674,61723.0,61718.0,0.123]
[1724778026887,0.011,61722.0,61718.0,0.124]
[1724778028419,0.011,61722.0,61718.0,0.12404]
[1724778028869,0.04792674,61726.0,61718.0,0.12304]
[1724778029070,0.008,61723.0,61718.0,0.12404]
[1724778029686,0.04792674,61725.0,61718.0,0.12304]
[1724778029899,0.04792674,61725.0,61718.0,0.12404]
[1724778029900,0.008,61722.0,61718.0,0.12404]
[1724778030555,0.04792674,61725.0,61718.0,0.12304]
[1724778030783,0.02539725,61722.0,61718.0,0.12404]
[1724778031016,0.0456604,61722.0,61718.0,0.12404]
[1724778032175,0.02539725,61722.0,61718.0,0.12304]
[1724778032657,0.03339725,61722.0,61719.0,0.1214]
[1724778032864,0.03339725,61722.0,61720.0,0.2251]
[1724778033089,0.03339725,61722.0,61721.0,0.1281]
[1724778033302,0.03339725,61722.0,61721.0,0.2511]
[1724778033528,0.00090421,61730.0,61722.0,0.1021]
[1724778033737,0.00090421,61730.0,61727.0,0.1281]
[1724778033947,0.00090421,61730.0,61729.0,0.1281]
[1724778034155,0.00090421,61730.0,61729.0,0.2511]
[1724778034362,0.00090421,61730.0,61729.0,0.3532]
[1724778035420,0.00790421,61730.0,61729.0,0.3532]
[1724778035834,0.00090421,61730.0,61729.0,0.3532]
[1724778036260,0.00790421,61730.0,61729.0,0.3542]
[1724778036687,0.00090421,61730.0,61729.0,0.3532]
[1724778037114,0.00690421,61730.0,61729.0,0.3542]
[1724778039251,0.00690421,61730.0,61729.0,0.2521]
[1724778040835,0.03229819,61730.0,61729.0,0.2521]
[1724778042115,0.03229819,61730.0,61729.0,0.124]
[1724778042328,0.13759819,61730.0,61729.0,0.001]
[1724778042540,0.16380801,61730.0,61729.0,0.101]
[1724778042780,0.16380801,61730.0,61729.0,0.0694375]
[1724778042993,0.16380801,61730.0,61727.0,0.1]
[1724778043198,0.25974685,61730.0,61727.0,0.1]
[1724778043613,0.25974685,61730.0,61719.0,0.38530702]
[1724778043847,0.03842469,61729.0,61720.0,0.023]
[1724778044274,0.2319,61728.0,61720.0,0.023]
[1724778044491,0.1056,61727.0,61719.0,0.023]
[1724778044922,0.1056,61727.0,61718.0,4e-05]
[1724778045785,0.1196,61727.0,61719.0,0.001]
[1724778045990,0.03491592,61726.0,61719.0,0.001]
[1724778046201,0.03491592,61726.0,61718.0,0.000861]
[1724778046689,0.03491592,61726.0,61718.0,0.001861]
[1724778047754,0.03491592,61726.0,61718.0,0.000861]
[1724778048166,0.04891592,61726.0,61718.0,0.001861]
[1724778048375,0.02956504,61725.0,61718.0,0.001861]
[1724778048791,0.05496307,61725.0,61718.0,0.001861]
[1724778049455,0.05496307,61725.0,61718.0,0.000861]
[1724778049681,0.06896307,61725.0,61718.0,0.000861]
[1724778049798,0.1038,61723.0,61718.0,0.000861]
[1724778050021,0.1245,61722.0,61718.0,0.000861]
[1724778050433,0.1038,61721.0,61718.0,0.000861]
[1724778050844,0.1096,61719.0,61718.0,0.000861]
[1724778051068,0.13801,61719.0,61718.0,0.000861]
[1724778051264,0.13801,61719.0,61718.0,0.001861]
[1724778051693,0.13801,61719.0,61718.0,0.000861]
[1724778052099,0.17741056,61719.0,61718.0,0.001861]
[1724778054635,0.14900056,61719.0,61718.0,0.001861]
[1724778054845,0.03940056,61719.0,61718.0,0.001861]
[1724778055263,0.014,61719.0,61718.0,0.001861]
[1724778058277,0.0394004,61719.0,61718.0,0.001861]
[1724778059164,0.05633071,61719.0,61718.0,0.001861]
[1724778059377,0.08974378,61719.0,61718.0,0.001861]
[1724778060489,0.25209998,61719.0,61718.0,0.001861]
[1724778061890,0.08974378,61719.0,61718.0,0.001861]
[1724778063951,0.32524378,61719.0,61718.0,0.001861]
[1724778064191,0.30831347,61719.0,61718.0,0.001861]
[1724778065042,0.17701347,61719.0,61718.0,0.001861]
[1724778065878,0.07281347,61719.0,61718.0,0.001861]
[1724778066083,0.07281347,61719.0,61718.0,0.024861]
[1724778066703,0.07281347,61719.0,61718.0,0.001861]
[1724778067747,0.2385,61714.0,61701.0,0.1107]
[1724778067965,0.07200825,61702.0,61701.0,0.1107]
[1724778068172,0.096011,61702.0,61701.0,0.2107]
[1724778068392,0.2385,61714.0,61701.0,0.2107]
[1724778068393,0.096011,61703.0,61701.0,0.2107]
[1724778068614,0.12141491,61702.0,61700.0,0.02363145]
[1724778068828,0.096011,61701.0,61700.0,0.000862]
[1724778069341,0.1039,61706.0,61700.0,0.000862]
[1724778069747,0.2786165,61705.0,61699.0,0.00296402]
[1724778069967,0.1039,61703.0,61691.0,0.1107]
[1724778070182,0.1346,61702.0,61698.0,0.02340796]
[1724778070404,0.5,61709.0,61698.0,0.000862]
[1724778070405,0.1386,61707.0,61698.0,0.000862]
[1724778070667,0.09582548,61699.0,61698.0,0.000862]
[1724778070885,0.11978053,61702.0,61698.0,0.139062]
[1724778071107,0.11978053,61702.0,61700.0,0.000822]
[1724778071311,0.014,61702.0,61700.0,0.000822]
[1724778071535,0.04741307,61702.0,61700.0,0.000822]
[1724778071743,0.03341307,61702.0,61700.0,0.000822]
[1724778071981,0.05882081,61702.0,61700.0,0.000822]
[1724778072214,0.07282081,61702.0,61700.0,0.000822]
[1724778073316,0.19926868,61701.0,61700.0,0.000822]
[1724778073529,0.30466868,61701.0,61700.0,0.000822]
[1724778074448,0.1054,61701.0,61694.0,0.1]
[1724778074655,0.04781237,61696.0,61694.0,0.02237815]
[1724778074909,0.07171856,61697.0,61686.0,0.2351]
[1724778075140,0.0478101,61694.0,61686.0,0.2351]
[1724778075351,0.15268077,61700.0,61686.0,0.2351]
[1724778075352,0.0478101,61695.0,61686.0,0.2351]
[1724778075571,0.2405,61694.0,61685.0,0.0218662]
[1724778075800,0.31218031,61694.0,61683.0,0.23514]
[1724778076022,0.07924512,61693.0,61683.0,0.23514]
[1724778076234,0.15092543,61693.0,61683.0,0.23514]
[1724778076455,0.07924512,61693.0,61683.0,0.23514]
[1724778076658,0.07924512,61693.0,61683.0,0.12904]
[1724778076876,0.07924512,61693.0,61683.0,0.0220314]
[1724778077159,0.132,61691.0,61683.0,0.0220314]
[1724778077591,0.1038,61690.0,61683.0,0.0220314]
[1724778078688,0.02541392,61689.0,61683.0,0.0220314]
[1724778079326,0.1298,61688.0,61683.0,0.0220314]
[1724778079538,0.1298,61688.0,61680.0,0.1]
[1724778079763,0.1298,61686.0,61679.0,0.009053]
[1724778079972,0.1298,61684.0,61680.0,0.023]
[1724778080401,0.1039,61685.0,61680.0,0.023]
[1724778081720,0.02541603,61684.0,61680.0,0.023]
[1724778082371,0.1273,61683.0,61679.0,0.009053]
[1724778082596,0.57941342,61684.0,61673.0,4e-05]
[1724778082818,1.07941342,61684.0,61673.0,4e-05]
[1724778083033,1.07941342,61684.0,61674.0,0.25290702]
[1724778083245,0.03092694,61683.0,61674.0,0.38440702]
[1724778083508,0.03092694,61683.0,61674.0,0.1315]
[1724778083717,0.03092694,61683.0,61680.0,0.000822]
[1724778084142,0.62257698,61684.0,61680.0,0.000822]
[1724778084571,0.02542118,61683.0,61680.0,0.000822]
[1724778084829,0.02542118,61683.0,61675.0,0.1]
[1724778085684,0.0433,61682.0,61675.0,0.1]
[1724778086106,0.5722122,61684.0,61675.0,0.1]
[1724778086550,0.55060061,61687.0,61675.0,0.1]
[1724778086761,0.22541746,61687.0,61676.0,0.023]
[1724778086978,0.22541746,61687.0,61677.0,0.2405]
[1724778087197,0.22541746,61687.0,61680.0,0.25290702]
[1724778087421,0.014,61683.0,61681.0,0.2361]
[1724778087630,0.014,61683.0,61681.0,0.2591]
[1724778088515,0.22541746,61687.0,61681.0,0.2591]
[1724778088751,0.23941746,61687.0,61686.0,0.25290702]
[1724778088961,0.23941746,61687.0,61686.0,0.123]
[1724778089393,0.23941746,61687.0,61686.0,0.61440702]
[1724778089394,0.014,61687.0,61686.0,0.61440702]
[1724778089611,0.00090421,61692.0,61686.0,0.62589268]
[1724778089846,0.00090421,61692.0,61689.0,0.106]
[1724778090075,0.00090421,61692.0,61691.0,0.2385]
[1724778090296,0.00090421,61692.0,61691.0,0.37876609]
[1724778090509,0.00090421,61692.0,61691.0,0.40176609]
[1724778090729,0.22541746,61704.0,61693.0,0.03249]
[1724778090946,0.22541746,61704.0,61692.0,0.04026609]
[1724778090947,0.22541746,61704.0,61703.0,0.1417]
[1724778091173,0.22541746,61704.0,61703.0,0.2647]
[1724778091395,0.54776731,61717.0,61703.0,0.16326609]
[1724778091608,0.54776731,61717.0,61711.0,0.25125201]
[1724778091850,0.22541746,61722.0,61712.0,0.1]
[1724778092076,0.22541746,61722.0,61719.0,0.090395]
[1724778092309,0.22541746,61722.0,61720.0,0.019]
[1724778092544,0.22541746,61722.0,61720.0,0.119]
[1724778092777,0.2508208,61722.0,61720.0,0.119]
[1724778093201,0.02540334,61722.0,61720.0,0.119]
[1724778093418,0.02540334,61722.0,61720.0,0.15926609]
[1724778093625,0.02540334,61722.0,61721.0,0.1118]
[1724778093855,0.02540334,61722.0,61721.0,0.2118]
[1724778094498,0.02540334,61722.0,61721.0,0.36334]
[1724778094715,0.02540334,61722.0,61720.0,0.04026609]
[1724778094952,0.02540334,61722.0,61719.0,0.090395]
[1724778095382,0.02540334,61722.0,61717.0,0.03249]
[1724778095589,0.02540334,61722.0,61713.0,0.28539702]
[1724778095803,0.002,61717.0,61713.0,0.28539702]
[1724778096855,0.02630755,61722.0,61714.0,0.123]
[1724778097294,0.002,61717.0,61714.0,0.123]
[1724778098378,0.002,61717.0,61714.0,0.124]
[1724778098810,0.07408593,61722.0,61714.0,0.123]
[1724778099224,0.07408593,61722.0,61714.0,0.124]
[1724778099431,0.04777838,61721.0,61714.0,0.12404]
[1724778100345,0.04777838,61721.0,61714.0,0.12304]
[1724778100536,0.04777838,61720.0,61714.0,0.12304]
[1724778100747,0.04777838,61720.0,61714.0,0.12404]
[1724778101159,0.04777838,61720.0,61714.0,0.12304]
[1724778101384,0.04777838,61719.0,61714.0,0.12404]
[1724778102005,0.04777838,61719.0,61714.0,0.09224]
[1724778102425,0.04777838,61718.0,61714.0,0.09324]
[1724778102868,0.014,61720.0,61714.0,0.09324]
[1724778102869,0.04777838,61717.0,61714.0,0.09324]
[1724778103091,0.04777838,61716.0,61714.0,0.09324]
[1724778103500,0.014,61720.0,61714.0,0.05712812]
[1724778103501,0.20426758,61715.0,61714.0,0.05712812]
[1724778103710,0.014,61720.0,61714.0,4e-05]
[1724778103711,0.07166758,61717.0,61714.0,4e-05]
[1724778103963,0.04778643,61716.0,61714.0,0.00104]
[1724778104168,0.002,61716.0,61715.0,0.38210702]
[1724778104381,0.002,61716.0,61715.0,0.51620702]
[1724778104596,0.002,61716.0,61715.0,0.56093659]
[1724778104802,0.002,61716.0,61715.0,0.34051957]
[1724778105010,0.002,61716.0,61715.0,0.36351957]
[1724778105672,0.002,61716.0,61715.0,0.46351957]
[1724778105883,0.016,61716.0,61715.0,0.46451957]
[1724778106308,0.016,61716.0,61715.0,0.50480312]
[1724778107187,0.002,61719.0,61717.0,0.03249]
[1724778107394,0.002,61719.0,61718.0,0.44759702]
[1724778107609,0.002,61719.0,61718.0,0.53959702]
[1724778108295,0.01,61719.0,61718.0,0.53959702]
[1724778108717,0.002,61719.0,61718.0,0.53959702]
[1724778108930,0.002,61719.0,61718.0,0.54041902]
[1724778109190,0.009,61719.0,61718.0,0.54141902]
[1724778109626,0.009,61719.0,61718.0,0.50892902]
[1724778109842,0.009,61719.0,61718.0,0.36972902]
[1724778110063,0.009,61719.0,61718.0,0.35472902]
[1724778110489,0.03440207,61719.0,61718.0,0.35472902]
[1724778111753,0.0821885,61719.0,61718.0,0.35472902]
[1724778112178,0.03440207,61719.0,61718.0,0.35472902]
[1724778112390,0.03440207,61719.0,61718.0,0.41021902]
[1724778113453,0.01858531,61719.0,61718.0,0.41021902]
[1724778114098,0.01858531,61719.0,61718.0,0.37772902]
[1724778114710,0.01858531,61719.0,61718.0,0.40162185]
[1724778115353,0.002,61719.0,61718.0,0.40162185]
[1724778116185,0.002,61719.0,61718.0,0.40166185]
[1724778118687,0.002,61719.0,61718.0,0.40066185]
[1724778119120,0.002,61719.0,61718.0,0.12575483]
[1724778119347,0.002,61719.0,61718.0,0.02575483]
[1724778119644,0.002,61719.0,61718.0,0.12475483]
[1724778120249,0.002,61719.0,61718.0,0.14775483]
[1724778120678,0.00290421,61719.0,61718.0,0.18245483]
[1724778120883,0.00290421,61719.0,61718.0,0.28345483]
[1724778121300,0.00290421,61719.0,61718.0,0.4613844]
[1724778122160,0.00290421,61719.0,61718.0,0.4603844]
[1724778122372,0.00290421,61719.0,61718.0,0.4928744]
[1724778122582,0.07743095,61727.0,61723.0,0.2979]
[1724778122792,0.04866346,61727.0,61724.0,0.282]
[1724778123072,0.47989634,61737.0,61724.0,0.282]
[1724778123289,0.00090311,61740.0,61724.0,0.282]
[1724778123290,0.00090311,61740.0,61728.0,0.25290702]
[1724778123506,0.1708,61735.0,61728.0,0.35290702]
[1724778123718,0.1708,61739.0,61728.0,0.35290702]
[1724778124679,0.00090311,61740.0,61728.0,0.37590702]
[1724778124906,0.00090311,61740.0,61728.0,0.53490702]
[1724778125128,0.00090311,61740.0,61728.0,0.53590702]
[1724778125570,0.02630041,61729.0,61728.0,0.35390702]
[1724778125999,0.00090311,61729.0,61728.0,0.35394702]
[1724778126213,0.00090311,61729.0,61728.0,0.35294702]
[1724778126388,0.00090311,61729.0,61728.0,0.10004]
[1724778126594,0.00090311,61729.0,61728.0,4e-05]
[1724778127017,0.00090311,61729.0,61728.0,0.00104]
[1724778127018,0.01490311,61729.0,61728.0,0.00104]
[1724778127237,0.01490311,61729.0,61728.0,0.17384]
[1724778127454,0.02890311,61729.0,61728.0,0.27484]
[1724778127631,0.02890311,61729.0,61728.0,0.10204]
[1724778128081,0.02890311,61729.0,61728.0,0.10104]
[1724778128462,0.02890311,61729.0,61728.0,0.00204]
[1724778128857,0.05430212,61729.0,61728.0,0.00104]
[1724778129236,0.02890311,61729.0,61728.0,0.00204]
[1724778130259,0.02890311,61729.0,61728.0,0.00104]
[1724778130260,0.00090311,61729.0,61728.0,0.00104]
[1724778130467,0.17250311,61729.0,61728.0,0.00104]
[1724778130669,0.17250311,61729.0,61726.0,0.1]
[1724778130670,0.19790207,61729.0,61726.0,0.0765625]
[1724778130883,0.32931746,61728.0,61720.0,0.1]
[1724778131119,0.32931746,61728.0,61718.0,0.000862]
[1724778131929,0.32931746,61728.0,61726.0,0.001]
[1724778132126,0.4489665,61728.0,61726.0,0.001]
[1724778132283,0.32931746,61728.0,61726.0,0.001]
[1724778132479,0.32931746,61728.0,61718.0,0.000862]
[1724778132681,0.09581784,61720.0,61718.0,0.000862]
[1724778132897,0.1197723,61720.0,61718.0,0.000862]
[1724778133111,0.1704,61720.0,61718.0,0.000862]
[1724778133319,0.19580173,61720.0,61718.0,0.000862]
[1724778133726,0.33939136,61720.0,61718.0,0.000862]
[1724778133993,0.1039,61719.0,61718.0,0.001862]
[1724778134134,0.1039,61719.0,61718.0,0.000862]
[1724778134343,0.1039,61719.0,61718.0,0.001862]
[1724778134344,0.42593834,61719.0,61718.0,0.001862]
[1724778134764,0.42593834,61719.0,61718.0,0.001]
[1724778135179,0.43993834,61719.0,61718.0,0.002]
[1724778135396,0.2784,61719.0,61718.0,0.002]
[1724778135603,0.2644,61719.0,61718.0,0.001]
[1724778136039,0.2784,61719.0,61718.0,0.001]
[1724778136243,0.2924,61719.0,61718.0,0.001]
[1724778136444,0.2924,61719.0,61718.0,0.00104]
[1724778136650,0.46388,61719.0,61718.0,0.00104]
[1724778136874,0.385772,61719.0,61718.0,0.00104]
[1724778137072,0.399772,61719.0,61718.0,0.00104]
[1724778137624,0.2924,61719.0,61718.0,0.00104]
[1724778138028,0.3178073,61719.0,61718.0,0.00104]
[1724778139770,0.4550073,61719.0,61718.0,0.00104]